fUSD/lending_fUSD_20250522
["ID","MTS","AMOUNT","RATE_DAILY","PERIOD"]
[362003713,1747933845489,-420.0,0.00032876,5]
[362003714,1747933845499,-420.0,0.00032876,5]
[362003715,1747933845508,-420.0,0.00032876,5]
[362003716,1747933845518,-420.0,0.00032876,5]
[362003717,1747933845527,-420.0,0.00032876,5]
[362003718,1747933845537,-501.6,0.00032876,5]
[362003719,1747933845546,-607.22,0.00032876,5]
[362003720,1747933845555,-420.0,0.00032876,5]
[362003721,1747933845564,-420.0,0.00032876,5]
[362003722,1747933845573,-420.0,0.00032876,5]
[362003723,1747933845583,-470.61,0.00032876,5]
[362003724,1747933845592,-420.0,0.00032876,5]
[362003725,1747933845601,-566.25,0.00032876,5]
[362003726,1747933845611,-420.0,0.00032876,5]
[362003727,1747933845620,-420.0,0.00032876,5]
[362003728,1747933845630,-475.69,0.00032876,5]
[362003729,1747933845639,-711.61,0.00032876,5]
[362003730,1747933845648,-420.0,0.00032876,5]
[362003732,1747933845658,-454.53,0.00032876,5]
[362003733,1747933845667,-420.0,0.00032876,5]
[362003734,1747933845676,-420.0,0.00032876,5]
[362003735,1747933845685,-420.0,0.00032876,5]
[362003736,1747933845694,-420.0,0.00032876,5]
[362003737,1747933845704,-420.0,0.00032876,5]
[362003738,1747933845716,-151.0,0.00032876,7]
[362003739,1747933845725,-151.0,0.00032876,7]
[362003740,1747933845734,-420.0,0.00032876,5]
[362003741,1747933845743,-420.0,0.00032876,5]
[362003742,1747933845753,-420.0,0.00032876,5]
[362003743,1747933845762,-545.9,0.00032876,5]
[362003744,1747933845771,-420.0,0.00032876,5]
[362003746,1747933845780,-420.0,0.00032876,5]
[362003747,1747933845791,-420.0,0.00032876,5]
[362003748,1747933845800,-420.0,0.00032876,5]
[362003749,1747933845810,-420.0,0.00032876,5]
[362003750,1747933845820,-420.0,0.00032876,5]
[362003751,1747933845829,-589.57,0.00032876,5]
[362003752,1747933845839,-467.35505987,0.00032876,5]
[362003753,1747933845850,-1563.4,0.00032876,5]
[362003754,1747933845859,-420.0,0.00032876,5]
[362003755,1747933845869,-481.76,0.00032876,5]
[362003756,1747933845879,-420.0,0.00032876,5]
[362003757,1747933845888,-420.0,0.00032876,5]
[362003758,1747933845896,-420.0,0.00032876,10]
[362003759,1747933845906,-420.0,0.00032876,5]
[362003760,1747933845915,-420.0,0.00032876,5]
[362003761,1747933845924,-420.0,0.00032876,5]
[362003762,1747933845934,-420.0,0.00032876,5]
[362003763,1747933845944,-586.37,0.00032876,5]
[362003764,1747933845953,-559.24,0.00032876,5]
[362003765,1747933845963,-420.0,0.00032876,5]
[362003766,1747933845972,-420.0,0.00032876,5]
[362003767,1747933845981,-420.0,0.00032876,5]
[362003768,1747933845991,-1122.81,0.00032876,5]
[362003769,1747933846000,-420.0,0.00032876,5]
[362003770,1747933846010,-420.0,0.00032876,5]
[362003771,1747933846019,-420.0,0.00032876,5]
[362003772,1747933846028,-420.0,0.00032876,5]
[362003773,1747933846037,-420.0,0.00032876,5]
[362003774,1747933846048,-727.36,0.00032876,5]
[362003775,1747933846057,-577.39,0.00032876,5]
[362003776,1747933846068,-420.0,0.00032876,5]
[362003777,1747933846078,-477.85,0.00032876,5]
[362003778,1747933846089,-420.0,0.00032876,5]
[362003779,1747933846100,-420.0,0.00032876,5]
[362003780,1747933846110,-259.64307803,0.00032876,5]
[362003781,1747933846119,-420.0,0.00032876,5]
[362003782,1747933846129,-644.15,0.00032876,5]
[362003784,1747933846138,-300.0,0.00032876,5]
[362003785,1747933846148,-572.15,0.00032876,5]
[362003786,1747933846157,-420.0,0.00032876,5]
[362003787,1747933846167,-420.0,0.00032876,5]
[362003788,1747933846176,-420.0,0.00032876,5]
[362003789,1747933846186,-532.67,0.00032876,5]
[362003791,1747933846195,-420.0,0.00032876,5]
[362003793,1747933846204,-420.0,0.00032876,5]
[362003795,1747933846213,-493.12,0.00032876,5]
[362003796,1747933846223,-459.75,0.00032876,5]
[362003797,1747933846232,-843.51,0.00032876,5]
[362003798,1747933846241,-420.0,0.00032876,5]
[362003799,1747933846251,-420.0,0.00032876,5]
[362003800,1747933846259,-420.0,0.00032876,5]
[362003801,1747933846269,-420.0,0.00032876,5]
[362003802,1747933846279,-420.0,0.00032876,5]
[362003803,1747933846289,-420.0,0.00032876,5]
[362003805,1747933846298,-420.0,0.00032876,5]
[362003806,1747933846307,-420.0,0.00032876,5]
[362003808,1747933846317,-593.15,0.00032876,5]
[362003810,1747933846326,-420.0,0.00032876,5]
[362003811,1747933846337,-151.0,0.00032876,7]
[362003813,1747933846346,-151.0,0.00032876,7]
[362003815,1747933846355,-797.22,0.00032876,5]
[362003817,1747933846364,-533.84,0.00032876,5]
[362003818,1747933846374,-420.0,0.00032876,5]
[362003820,1747933846383,-420.0,0.00032876,5]
[362003822,1747933846391,-529.35,0.00032876,5]
[362003824,1747933846401,-420.0,0.00032876,5]
[362003825,1747933846410,-592.14,0.00032876,5]
[362003827,1747933846419,-420.0,0.00032876,5]
[362003828,1747933846428,-420.0,0.00032876,5]
[362003830,1747933846437,-420.0,0.00032876,5]
[362003832,1747933846449,-420.0,0.00032876,5]
[362003833,1747933846458,-420.0,0.00032876,5]
[362003835,1747933846468,-420.0,0.00032876,5]
[362003837,1747933846477,-420.0,0.00032876,5]
[362003838,1747933846486,-682.38,0.00032876,5]
[362003840,1747933846495,-172.31397768,0.00032876,5]
[362003842,1747933846504,-420.0,0.00032876,5]
[362003844,1747933846513,-920.85,0.00032876,5]
[362003846,1747933846523,-420.0,0.00032876,5]
[362003847,1747933846532,-603.95,0.00032876,5]
[362003848,1747933846541,-420.0,0.00032876,5]
[362003849,1747933846550,-420.0,0.00032876,5]
[362003850,1747933846559,-420.0,0.00032876,5]
[362003851,1747933846568,-420.0,0.00032876,5]
[362003852,1747933846578,-420.0,0.00032876,5]
[362003853,1747933846587,-438.47,0.00032876,5]
[362003854,1747933846596,-420.0,0.00032876,5]
[362003855,1747933846605,-420.0,0.00032876,5]
[362003856,1747933846614,-779.53,0.00032876,5]
[362003857,1747933846623,-420.0,0.00032876,5]
[362003858,1747933846632,-151.0,0.00032876,7]
[362003859,1747933846642,-420.0,0.00032876,5]
[362003860,1747933846651,-420.0,0.00032876,5]
[362003861,1747933846660,-151.0,0.00032876,7]
[362003862,1747933846670,-477.74,0.00032876,5]
[362003863,1747933846679,-420.0,0.00032876,5]
[362003864,1747933846688,-482.75,0.00032876,5]
[362003865,1747933846697,-420.0,0.00032876,5]
[362003866,1747933846707,-420.0,0.00032876,5]
[362003867,1747933846720,-420.0,0.00032876,5]
[362003868,1747933846730,-430.85,0.00032876,5]
[362003869,1747933846739,-420.0,0.00032876,5]
[362003870,1747933846748,-420.0,0.00032876,5]
[362003871,1747933846758,-151.0,0.00032876,7]
[362003872,1747933846767,-420.0,0.00032876,5]
[362003873,1747933846776,-420.0,0.00032876,5]
[362003874,1747933846787,-151.0,0.00032876,7]
[362003875,1747933846796,-420.0,0.00032876,5]
[362003876,1747933846805,-420.0,0.00032876,5]
[362003877,1747933846814,-420.0,0.00032876,5]
[362003878,1747933846824,-420.0,0.00032876,5]
[362003879,1747933846833,-420.0,0.00032876,5]
[362003880,1747933846842,-420.0,0.00032876,5]
[362003881,1747933846852,-669.62,0.00032876,5]
[362003882,1747933846861,-211.04348671,0.00032876,5]
[362003883,1747933846871,-2000.0,0.00032876,5]
[362003884,1747933846881,-420.0,0.00032876,5]
[362003885,1747933846890,-420.0,0.00032876,5]
[362003886,1747933846899,-420.0,0.00032876,5]
[362003887,1747933846908,-420.0,0.00032876,5]
[362003888,1747933846918,-508.77,0.00032876,5]
[362003889,1747933846927,-420.0,0.00032876,5]
[362003890,1747933846937,-420.0,0.00032876,5]
[362003891,1747933846946,-420.0,0.00032876,5]
[362003892,1747933846956,-420.0,0.00032876,5]
[362003893,1747933846965,-495.88,0.00032876,5]
[362003894,1747933846977,-420.0,0.00032876,5]
[362003895,1747933846986,-420.0,0.00032876,5]
[362003896,1747933846995,-459.41,0.00032876,5]
[362003897,1747933847004,-420.0,0.00032876,5]
[362003898,1747933847014,-420.0,0.00032876,5]
[362003899,1747933847023,-420.0,0.00032876,5]
[362003900,1747933847032,-420.0,0.00032876,5]
[362003901,1747933847041,-420.0,0.00032876,5]
[362003902,1747933847050,-539.96,0.00032876,5]
[362003903,1747933847060,-420.0,0.00032876,5]
[362003904,1747933847069,-420.0,0.00032876,5]
[362003905,1747933847080,-420.0,0.00032876,5]
[362003906,1747933847092,-420.0,0.00032876,5]
[362003907,1747933847101,-420.0,0.00032876,5]
[362003908,1747933847111,-420.0,0.00032876,5]
[362003909,1747933847120,-420.0,0.00032876,5]
[362003910,1747933847129,-500.0,0.00032876,5]
[362003911,1747933847138,-525.35,0.00032876,5]
[362003912,1747933847147,-420.0,0.00032876,5]
[362003913,1747933847157,-510.6,0.00032876,5]
[362003914,1747933847166,-420.0,0.00032876,5]
[362003915,1747933847176,-420.0,0.00032876,5]
[362003916,1747933847186,-420.0,0.00032876,5]
[362003917,1747933847195,-420.0,0.00032876,5]
[362003918,1747933847204,-420.0,0.00032876,5]
[362003919,1747933847215,-442.76,0.00032876,5]
[362003920,1747933847382,-420.0,0.00032876,5]
[362003921,1747933847413,-420.0,0.00032876,5]
[362003922,1747933847423,-420.0,0.00032876,5]
[362003923,1747933847433,-420.0,0.00032876,5]
[362003924,1747933847442,-494.37,0.00032876,5]
[362003925,1747933847452,-420.0,0.00032876,5]
[362003926,1747933847462,-420.0,0.00032876,5]
[362003927,1747933847471,-420.0,0.00032876,5]
[362003928,1747933847481,-420.0,0.00032876,5]
[362003929,1747933847491,-420.0,0.00032876,5]
[362003930,1747933847500,-420.0,0.00032876,5]
[362003931,1747933847510,-420.0,0.00032876,5]
[362003932,1747933847521,-809.26,0.00032876,5]
[362003933,1747933847530,-420.0,0.00032876,5]
[362003934,1747933847540,-420.0,0.00032876,5]
[362003935,1747933847550,-420.0,0.00032876,5]
[362003936,1747933847559,-420.0,0.00032876,5]
[362003937,1747933847569,-420.0,0.00032876,5]
[362003938,1747933847579,-420.0,0.00032876,5]
[362003939,1747933847588,-420.0,0.00032876,5]
[362003940,1747933847598,-420.0,0.00032876,5]
[362003941,1747933847608,-420.0,0.00032876,5]
[362003942,1747933847617,-769.8,0.00032876,5]
[362003943,1747933847627,-420.0,0.00032876,5]
[362003944,1747933847637,-977.72,0.00032876,5]
[362003945,1747933847647,-460.19,0.00032876,5]
[362003946,1747933847657,-420.0,0.00032876,5]
[362003947,1747933847667,-420.0,0.00032876,5]
[362003948,1747933847677,-420.0,0.00032876,5]
[362003949,1747933847687,-151.0,0.00032876,7]
[362003950,1747933847697,-151.0,0.00032876,7]
[362003951,1747933847708,-420.0,0.00032876,5]
[362003952,1747933847721,-420.0,0.00032876,5]
[362003953,1747933847731,-466.15,0.00032876,5]
[362003954,1747933847741,-420.0,0.00032876,5]
[362003955,1747933847751,-845.24,0.00032876,5]
[362003956,1747933847760,-420.0,0.00032876,5]
[362003957,1747933847770,-420.0,0.00032876,5]
[362003958,1747933847780,-508.6,0.00032876,5]
[362003959,1747933847793,-734.6,0.00032876,5]
[362003960,1747933847804,-420.0,0.00032876,5]
[362003961,1747933847814,-420.0,0.00032876,5]
[362003962,1747933847824,-420.0,0.00032876,5]
[362003963,1747933847833,-638.11,0.00032876,5]
[362003964,1747933847843,-465.09,0.00032876,5]
[362003965,1747933847853,-1581.76,0.00032876,5]
[362003966,1747933847863,-420.0,0.00032876,5]
[362003967,1747933847873,-420.0,0.00032876,5]
[362003968,1747933847883,-437.18,0.00032876,5]
[362003969,1747933847893,-420.0,0.00032876,5]
[362003970,1747933847903,-420.0,0.00032876,5]
[362003971,1747933847912,-420.0,0.00032876,5]
[362003972,1747933847921,-420.0,0.00032876,5]
[362003973,1747933847931,-420.0,0.00032876,5]
[362003974,1747933847941,-420.0,0.00032876,5]
[362003975,1747933847951,-870.21,0.00032876,5]
[362003976,1747933847962,-420.0,0.00032876,5]
[362003977,1747933847972,-789.17,0.00032876,5]
[362003978,1747933847981,-420.0,0.00032876,5]
[362003979,1747933847991,-420.0,0.00032876,5]
[362003980,1747933848001,-420.0,0.00032876,5]
[362003981,1747933848011,-649.66,0.00032876,5]
[362003982,1747933848020,-595.12,0.00032876,5]
[362003983,1747933848031,-420.0,0.00032876,5]
[362003984,1747933848041,-420.0,0.00032876,5]
[362003985,1747933848051,-509.16,0.00032876,5]
[362003986,1747933848060,-420.0,0.00032876,5]
[362003987,1747933848071,-433.89,0.00032876,5]
[362003988,1747933848081,-420.0,0.00032876,5]
[362003989,1747933848090,-420.0,0.00032876,5]
[362003990,1747933848099,-420.0,0.00032876,5]
[362003991,1747933848109,-420.0,0.00032876,5]
[362003992,1747933848118,-420.0,0.00032876,5]
[362003993,1747933848129,-420.0,0.00032876,5]
[362003994,1747933848140,-420.0,0.00032876,5]
[362003995,1747933848150,-420.0,0.00032876,5]
[362003996,1747933848159,-420.0,0.00032876,5]
[362003997,1747933848172,-498.61,0.00032876,5]
[362003998,1747933848182,-580.11,0.00032876,5]
[362003999,1747933848192,-573.53,0.00032876,5]
[362004000,1747933848201,-420.0,0.00032876,5]
[362004001,1747933848211,-1000.0,0.00032876,5]
[362004002,1747933848221,-420.0,0.00032876,5]
[362004003,1747933848231,-225.31223027,0.00032876,5]
[362004004,1747933848241,-420.0,0.00032876,5]
[362004005,1747933848251,-420.0,0.00032876,5]
[362004006,1747933848261,-608.49,0.00032876,5]
[362004007,1747933848271,-420.0,0.00032876,5]
[362004008,1747933848281,-420.0,0.00032876,5]
[362004009,1747933848291,-425.68,0.00032876,5]
[362004010,1747933848301,-420.0,0.00032876,5]
[362004011,1747933848310,-481.58,0.00032876,5]
[362004012,1747933848320,-1071.99,0.00032876,5]
[362004013,1747933848330,-730.27,0.00032876,5]
[362004014,1747933848339,-420.0,0.00032876,5]
[362004015,1747933848349,-420.0,0.00032876,5]
[362004016,1747933848359,-420.0,0.00032876,5]
[362004017,1747933848369,-420.0,0.00032876,5]
[362004018,1747933848379,-420.0,0.00032876,5]
[362004019,1747933848389,-420.0,0.00032876,5]
[362004020,1747933848398,-420.0,0.00032876,5]
[362004021,1747933848408,-420.0,0.00032876,5]
[362004022,1747933848419,-451.52,0.00032876,5]
[362004023,1747933848428,-420.0,0.00032876,5]
[362004024,1747933848438,-4192.77,0.00032876,5]
[362004025,1747933848452,-151.0,0.00032876,7]
[362004026,1747933848462,-420.0,0.00032876,5]
[362004027,1747933848472,-151.0,0.00032876,7]
[362004028,1747933848481,-420.0,0.00032876,5]
[362004029,1747933848491,-420.0,0.00032876,5]
[362004030,1747933848501,-515.3,0.00032876,5]
[362004031,1747933848510,-243.11237549,0.00032876,5]
[362004032,1747933848520,-420.0,0.00032876,5]
[362004033,1747933848529,-420.0,0.00032876,5]
[362004034,1747933848539,-420.0,0.00032876,5]
[362004035,1747933848548,-420.0,0.00032876,5]
[362004036,1747933848558,-420.0,0.00032876,5]
[362004037,1747933848567,-709.41,0.00032876,5]
[362004038,1747933848577,-510.74,0.00032876,5]
[362004039,1747933848586,-2867.71,0.00032876,5]
[362004040,1747933848597,-420.0,0.00032876,5]
[362004041,1747933848607,-420.0,0.00032876,5]
[362004042,1747933848617,-420.0,0.00032876,5]
[362004043,1747933848626,-193.87865011,0.00032876,5]
[362004044,1747933848636,-688.79,0.00032876,5]
[362004045,1747933848646,-420.0,0.00032876,5]
[362004046,1747933848656,-576.22,0.00032876,5]
[362004047,1747933848666,-478.42,0.00032876,5]
[362004048,1747933848676,-420.0,0.00032876,5]
[362004049,1747933848686,-420.0,0.00032876,5]
[362004050,1747933848695,-300.0,0.00032876,5]
[362004051,1747933848705,-566.07,0.00032876,5]
[362004052,1747933848719,-420.0,0.00032876,5]
[362004053,1747933848729,-636.56,0.00032876,5]
[362004054,1747933848738,-701.85,0.00032876,5]
[362004055,1747933848748,-420.0,0.00032876,5]
[362004056,1747933848758,-420.0,0.00032876,5]
[362004057,1747933848768,-776.15,0.00032876,5]
[362004058,1747933848777,-420.0,0.00032876,5]
[362004059,1747933848788,-420.0,0.00032876,5]
[362004060,1747933848798,-420.0,0.00032876,5]
[362004061,1747933848808,-420.0,0.00032876,5]
[362004062,1747933848818,-385.65327879,0.00032876,5]
[362004063,1747933848828,-420.0,0.00032876,5]
[362004064,1747933848837,-719.59,0.00032876,5]
[362004065,1747933848847,-420.0,0.00032876,5]
[362004066,1747933848857,-5440.18,0.00032876,5]
[362004067,1747933848867,-420.0,0.00032876,5]
[362004068,1747933848877,-420.0,0.00032876,5]
[362004069,1747933848886,-420.0,0.00032876,5]
[362004070,1747933848896,-420.0,0.00032876,5]
[362004071,1747933848906,-420.0,0.00032876,5]
[362004072,1747933848916,-420.0,0.00032876,5]
[362004073,1747933848925,-420.0,0.00032876,5]
[362004074,1747933848935,-2209.94,0.00032876,5]
[362004075,1747933848945,-420.0,0.00032876,5]
[362004076,1747933848954,-420.0,0.00032876,5]
[362004077,1747933848964,-420.0,0.00032876,5]
[362004078,1747933848974,-420.0,0.00032876,5]
[362004079,1747933848983,-420.0,0.00032876,5]
[362004080,1747933848993,-420.0,0.00032876,5]
[362004081,1747933849002,-420.0,0.00032876,5]
[362004082,1747933849012,-761.94,0.00032876,5]
[362004083,1747933849022,-422.69858825,0.00032876,5]
[362004084,1747933849031,-420.0,0.00032876,5]
[362004085,1747933849041,-420.0,0.00032876,5]
[362004086,1747933849051,-517.02315307,0.00032876,5]
[362004087,1747933849061,-6144.99,0.00032876,5]
[362004088,1747933849071,-151.0,0.00032876,7]
[362004089,1747933849080,-151.0,0.00032876,7]
[362004090,1747933849090,-420.0,0.00032876,5]
[362004091,1747933849100,-420.0,0.00032876,5]
[362004092,1747933849110,-771.06,0.00032876,5]
[362004093,1747933849122,-420.0,0.00032876,5]
[362004094,1747933849132,-420.0,0.00032876,5]
[362004095,1747933849142,-420.0,0.00032876,5]
[362004096,1747933849151,-689.72,0.00032876,5]
[362004097,1747933849161,-420.0,0.00032876,5]
[362004098,1747933849170,-151.0,0.00032876,7]
[362004099,1747933849180,-420.0,0.00032876,5]
[362004100,1747933849190,-151.0,0.00032876,7]
[362004101,1747933849199,-420.0,0.00032876,5]
[362004102,1747933849210,-557.56,0.00032876,5]
[362004103,1747933849219,-698.33,0.00032876,5]
[362004104,1747933849229,-681.1,0.00032876,5]
[362004105,1747933849239,-466.66817444,0.00032876,5]
[362004106,1747933849249,-420.0,0.00032876,5]
[362004107,1747933849259,-951.74,0.00032876,5]
[362004108,1747933849268,-420.0,0.00032876,5]
[362004109,1747933849278,-420.0,0.00032876,5]
[362004110,1747933849288,-420.0,0.00032876,5]
[362004111,1747933849298,-420.0,0.00032876,5]
[362004112,1747933849308,-420.0,0.00032876,5]
[362004113,1747933849318,-1002.07,0.00032876,5]
[362004114,1747933849327,-420.0,0.00032876,5]
[362004115,1747933849337,-420.0,0.00032876,5]
[362004116,1747933849347,-420.0,0.00032876,5]
[362004117,1747933849357,-2150.16,0.00032876,5]
[362004118,1747933849367,-420.0,0.00032876,5]
[362004119,1747933849378,-420.0,0.00032876,5]
[362004120,1747933849393,-769.67,0.00032876,5]
[362004121,1747933849404,-420.0,0.00032876,5]
[362004122,1747933849414,-1224.35,0.00032876,5]
[362004123,1747933849424,-420.0,0.00032876,5]
[362004124,1747933849434,-420.0,0.00032876,5]
[362004125,1747933849445,-420.0,0.00032876,5]
[362004126,1747933849456,-420.0,0.00032876,5]
[362004127,1747933849467,-728.12,0.00032876,5]
[362004128,1747933849477,-941.44,0.00032876,5]
[362004129,1747933849487,-1921.29,0.00032876,5]
[362004130,1747933849498,-420.0,0.00032876,5]
[362004131,1747933849508,-420.0,0.00032876,5]
[362004132,1747933849518,-420.0,0.00032876,5]
[362004133,1747933849528,-570.73,0.00032876,5]
[362004134,1747933849538,-420.0,0.00032876,5]
[362004135,1747933849550,-420.0,0.00032876,5]
[362004136,1747933849560,-420.0,0.00032876,5]
[362004137,1747933849570,-420.0,0.00032876,5]
[362004138,1747933849580,-420.0,0.00032876,5]
[362004139,1747933849590,-625.47,0.00032876,5]
[362004140,1747933849600,-420.0,0.00032876,5]
[362004141,1747933849610,-420.0,0.00032876,5]
[362004142,1747933849972,-420.0,0.00032876,5]
[362004143,1747933849983,-420.0,0.00032876,5]
[362004144,1747933849993,-420.0,0.00032876,5]
[362004145,1747933850003,-420.0,0.00032876,5]
[362004146,1747933850012,-3607.16,0.00032876,5]
[362004147,1747933850022,-420.0,0.00032876,5]
[362004148,1747933850032,-420.0,0.00032876,5]
[362004149,1747933850041,-981.4,0.00032876,5]
[362004150,1747933850051,-420.0,0.00032876,5]
[362004151,1747933850060,-420.0,0.00032876,5]
[362004152,1747933850070,-420.0,0.00032876,5]
[362004153,1747933850079,-466.32276149,0.00032876,5]
[362004154,1747933850089,-420.0,0.00032876,5]
[362004155,1747933850098,-420.0,0.00032876,5]
[362004156,1747933850108,-1224.05,0.00032876,5]
[362004157,1747933850117,-420.0,0.00032876,5]
[362004158,1747933850127,-420.0,0.00032876,5]
[362004159,1747933850136,-420.0,0.00032876,5]
[362004160,1747933850146,-769.81,0.00032876,5]
[362004161,1747933850155,-420.0,0.00032876,5]
[362004162,1747933850165,-420.0,0.00032876,5]
[362004163,1747933850175,-420.0,0.00032876,5]
[362004164,1747933850184,-420.0,0.00032876,5]
[362004165,1747933850194,-420.0,0.00032876,5]
[362004166,1747933850203,-420.0,0.00032876,5]
[362004167,1747933850213,-537.06,0.00032876,5]
[362004168,1747933850223,-4553.04,0.00032876,5]
[362004169,1747933850232,-420.0,0.00032876,5]
[362004170,1747933850242,-1136.33,0.00032876,5]
[362004171,1747933850253,-602.44,0.00032876,5]
[362004172,1747933850263,-513.95696017,0.00032876,5]
[362004173,1747933850272,-420.0,0.00032876,5]
[362004174,1747933850282,-682.83,0.00032876,5]
[362004175,1747933850291,-545.53,0.00032876,5]
[362004176,1747933850301,-617.12,0.00032876,5]
[362004177,1747933850310,-420.0,0.00032876,5]
[362004178,1747933850319,-578.41,0.00032876,5]
[362004179,1747933850328,-420.0,0.00032876,5]
[362004180,1747933850338,-20351.89,0.00032876,5]
[362004181,1747933850348,-476.43,0.00032876,5]
[362004182,1747933850358,-477.04,0.00032876,5]
[362004183,1747933850368,-420.0,0.00032876,5]
[362004184,1747933850378,-490.47,0.00032876,5]
[362004185,1747933850387,-420.0,0.00032876,5]
[362004186,1747933850398,-420.0,0.00032876,5]
[362004187,1747933850408,-420.0,0.00032876,5]
[362004188,1747933850418,-420.0,0.00032876,5]
[362004189,1747933850428,-420.0,0.00032876,5]
[362004190,1747933850437,-420.0,0.00032876,5]
[362004191,1747933850447,-420.0,0.00032876,5]
[362004192,1747933850456,-420.0,0.00032876,5]
[362004193,1747933850466,-811.02,0.00032876,5]
[362004194,1747933850476,-1000.0,0.00032876,30]
[362004195,1747933850485,-420.0,0.00032876,5]
[362004196,1747933850494,-1689.12,0.00032876,5]
[362004197,1747933850504,-1378.26,0.00032876,5]
[362004198,1747933850513,-420.0,0.00032876,5]
[362004199,1747933850523,-505.25,0.00032876,5]
[362004200,1747933850532,-898.43,0.00032876,5]
[362004201,1747933850542,-420.0,0.00032876,5]
[362004202,1747933850551,-997.18,0.00032876,5]
[362004203,1747933850561,-420.0,0.00032876,5]
[362004204,1747933850570,-420.0,0.00032876,5]
[362004205,1747933850579,-420.0,0.00032876,5]
[362004206,1747933850590,-420.0,0.00032876,5]
[362004207,1747933850599,-420.0,0.00032876,5]
[362004208,1747933850609,-660.15,0.00032876,5]
[362004209,1747933850619,-420.0,0.00032876,5]
[362004210,1747933850629,-151.0,0.00032876,7]
[362004211,1747933850639,-703.8,0.00032876,5]
[362004212,1747933850648,-151.0,0.00032876,7]
[362004213,1747933850657,-151.0,0.00032876,7]
[362004214,1747933850667,-420.0,0.00032876,5]
[362004215,1747933850676,-420.0,0.00032876,5]
[362004216,1747933850686,-550.31,0.00032876,5]
[362004217,1747933850695,-449.16,0.00032876,5]
[362004218,1747933850705,-420.0,0.00032876,5]
[362004219,1747933850718,-550.58,0.00032876,5]
[362004220,1747933850727,-420.0,0.00032876,5]
[362004221,1747933850736,-472.36,0.00032876,5]
[362004222,1747933850746,-822.44,0.00032876,5]
[362004223,1747933850755,-420.0,0.00032876,5]
[362004224,1747933850765,-716.72,0.00032876,5]
[362004225,1747933850775,-420.0,0.00032876,5]
[362004226,1747933850784,-420.0,0.00032876,5]
[362004227,1747933850796,-438.39550944,0.00032876,5]
[362004228,1747933850805,-420.0,0.00032876,5]
[362004229,1747933850815,-420.0,0.00032876,5]
[362004230,1747933850824,-420.0,0.00032876,5]
[362004231,1747933850834,-420.0,0.00032876,5]
[362004232,1747933850844,-1008.83,0.00032876,5]
[362004233,1747933850853,-867.21,0.00032876,5]
[362004234,1747933850863,-469.62,0.00032876,5]
[362004235,1747933850873,-745.26,0.00032876,5]
[362004236,1747933850882,-652.81,0.00032876,5]